[Event "Tsaghkadzor Open 2024"]
[Site "Tsaghkadzor"]
[Date "2024.10.03"]
[Round "5.3"]
[White "Lysyj, Igor"]
[Black "Yeritsyan, Hayk"]
[Result "1-0"]
[ECO "D35"]
[WhiteElo "2589"]
[BlackElo "2229"]
[Annotator "TA"]
[PlyCount "85"]
[EventDate "2024.09.13"]
[EventType "swiss"]
[EventCountry "ARM"]
[SourceTitle "playchess.com"]
[Source "ChessBase"]
[SourceQuality "1"]
[TimeControl "40/5400+30:1800+30"]

{[%evp 16,85,23,23,29,42,31,30,60,8,7,0,0,0,32,47,47,18,52,38,24,0,68,55,239,235,277,300,288,195,183,190,295,289,297,286,287,282,274,265,268,258,309,296,307,302,368,356,376,354,348,295,282,295,302,294,317,300,312,314,376,383,510,488,533,532,582,567,641,633,697,683]} 1. d4 {[%emt 0:00:20]} d5 {[%emt 0:00:13]} 2. c4 {[%emt 0:00:06]} e6 {[%emt 0:00:08]} 3. Nf3 {[%emt 0:00:03]} Nf6 {[%emt 0:00:11]} 4. Nc3 {[%emt 0:00:03]} Nbd7 {[%emt 0:05:13][%cal Bb8d7,Bd7f8,Bf8g6][%mdl 32]} 5. cxd5 {[%emt 0:00:37]} exd5 {[%emt 0:00:19]} 6. Qc2 {[%emt 0:00:04]} Be7 {[%emt 0:02:05]} 7. Bf4 {[%emt 0:02:00]} c6 {[%emt 0:01:40]} 8. h3 {[%emt 0:00:42]} Nf8 {[%emt 0:01:44]} 9. e3 {[%emt 0:00:29]} Ng6 {[%emt 0:00:23]} 10. Bh2 {[%emt 0:00:52]} O-O {[%emt 0:01:18]} 11. Bd3 {[%emt 0:00:19]} Bd6 {[%emt 0:07:36] White has an edge.} 12. Ne5 {[%emt 0:12:32]} (12. Bxd6 $14 Qxd6 13. Rb1) 12... Re8 $11 {[%emt 0:03:00][%cal Rg6e5]} 13. f4 {[%emt 0:00:18]} c5 {[%emt 0:14:18]} 14. O-O {[%emt 0:01:53]} c4 {[%emt 0:00:48]} 15. Be2 {[%emt 0:05:03]} a6 {[%emt 0:05:18]} 16. b3 {[%emt 0:12:49]} b5 {[%emt 0:04:28][%cal Bb7b5,Bb5c4][%mdl 32]} 17. bxc4 {[%emt 0:00:09]} bxc4 {[%emt 0:01:20]} 18. Rab1 {[%emt 0:02:07]} Qc7 {[%emt 0:03:04]} ({Black should play} 18... a5 $11) 19. g4 $14 {[%emt 0:06:39][%cal Bg2g4,Bg4g5][%mdl 32] Strongly threatening g5. White is much more active.} Bb7 $2 {[%emt 0:07:52] This costs Black the game.} (19... Ne7 $14) 20. g5 $18 {[%emt 0:01:42]} Nd7 {[%emt 0:01:12]} 21. Bf3 {[%emt 0:03:50]} Ne7 {[%emt 0:05:08] [#]} 22. Nxc4 $1 {[%emt 0:05:53][%mdl 512]} Qxc4 {[%emt 0:03:11]} 23. Rxb7 {[%emt 0:00:06]} Qc6 {[%emt 0:00:40]} (23... Nf8 $142 24. Qb3 Rab8 25. Qxc4 (25. Nxd5 Qxb3 26. Rxb3 Rxb3 $18) 25... dxc4) 24. Qb3 {[%emt 0:02:12][%cal Rc3d5]} Rab8 {[%emt 0:00:55]} 25. Rxb8 {[%emt 0:00:55]} (25. Bxd5 $2 {perishes.} Nxd5 26. Rxb8 Rxb8 27. Qxd5 Qxc3 $19) 25... Rxb8 {[%emt 0:00:06] [#]} 26. Nxd5 $1 {[%emt 0:00:11]} Qc8 {[%emt 0:01:29]} 27. Nxe7+ {[%emt 0:04:48]} Bxe7 {[%emt 0:00:05]} 28. Qd3 {[%emt 0:00:35]} Rb2 {[%emt 0:00:10]} 29. Rf2 {[%emt 0:05:53]} Qc1+ {[%emt 0:00:14]} 30. Kg2 {[%emt 0:03:16]} Rb1 {[%emt 0:00:36]} 31. Qf1 {[%emt 0:01:04]} ({Don't take} 31. Qxa6 Qh1+ 32. Kg3 Qe1 $18) 31... Nb6 {[%emt 0:00:48]} 32. Qxc1 {[%emt 0:00:39]} ({Not} 32. Qxa6 Nc4 $14) 32... Rxc1 {[%emt 0:00:05]} 33. Be4 {[%emt 0:10:11]} Nc4 {[%emt 0:00:15]} 34. Re2 {[%emt 0:00:14]} Rc3 {[%emt 0:01:35]} 35. Bg1 {[%emt 0:00:31]} g6 {[%emt 0:00:30]} 36. Bf2 {[%emt 0:01:34]} Ba3 {[%emt 0:00:50]} 37. Bd5 {[%emt 0:01:08]} Nd6 {[%emt 0:00:20]} 38. Bb3 {[%emt 0:02:31]} Nf5 {[%emt 0:01:49]} 39. e4 {[%emt 0:01:52][%cal Be3e4,Be4e5][%mdl 32] White is clearly winning.} Nd6 {[%emt 0:00:07]} 40. e5 {[%emt 0:00:00]} Nf5 {[%emt 0:00:00]} 41. Rc2 {[%emt 0:18:14] Prevents Bc1} Rd3 {[%emt 0:16:13]} 42. d5 {[%emt 0:01:50][%cal Bd4d5,Bd5d6][%mdl 32]} Bb4 {[%emt 0:00:24]} 43. d6 {[%emt 0:00:58] Weighted Error Value: White=0.10 (very precise) /Black=0.42.  Loses game:     	---       	Black=1      Mistake:       	White=1     	Black=2      Inaccurate:     	White=1     	Black=4      OK:         	White=19    	Black=8      Best:        	White=5     	---        Strong:       	White=1     	---} 1-0

[Event "Tsaghkadzor Open 2024"]
[Site "Tsaghkadzor"]
[Date "2024.10.03"]
[Round "5.4"]
[White "Davtyan, Arsen"]
[Black "Gabuzyan, Hovhannes"]
[Result "1/2-1/2"]
[ECO "C04"]
[WhiteElo "2377"]
[BlackElo "2579"]
[Annotator "TA"]
[PlyCount "86"]
[EventDate "2024.09.13"]
[EventType "swiss"]
[EventCountry "ARM"]
[SourceTitle "playchess.com"]
[Source "ChessBase"]
[SourceQuality "1"]
[TimeControl "40/5400+30:1800+30"]

{[%evp 12,86,32,37,44,40,50,12,8,0,22,0,0,0,0,0,10,8,5,12,8,0,0,0,7,0,0,0,10,12,14,-3,-8,-14,-18,-6,-14,-19,-18,-9,0,0,0,-29,-31,-35,-25,-27,-8,-8,-8,-8,-8,-8,-8,-8,-8,-8,-8,-8,-8,-8,-8,-8,-8,-8,0,-8,-8,-8,-8,-8,-8,-8,-8,-8,8]} 1. e4 {[%emt 0:00:02][%cal Be2e4,Be4e5][%mdl 32]} e6 {[%emt 0:00:04]} 2. d4 {[%emt 0:02:38]} d5 {[%emt 0:00:04]} 3. Nd2 {[%emt 0:00:38]} Nc6 {[%emt 0:00:06]} 4. Ngf3 {[%emt 0:00:18]} Nf6 {[%emt 0:00:05]} 5. e5 {[%emt 0:00:11]} Nd7 {[%emt 0:00:04]} 6. Nb3 {[%emt 0:00:28]} Be7 {[%emt 0:00:11]} 7. c3 {[%emt 0:03:12]} O-O {[%emt 0:01:50]} 8. Bd3 {[%emt 0:08:43]} f6 {[%emt 0:00:06]} 9. exf6 {[%emt 0:00:09]} Bxf6 {[%emt 0:00:38]} 10. h4 {[%emt 0:08:28] Und Ng5 würde nun gewinnen.} e5 {[%emt 0:02:01] [#] Droht ...e4 und aus.} 11. Bxh7+ {[%emt 0:18:06]} Kxh7 {[%emt 0:00:06]} 12. Ng5+ {[%emt 0:00:03]} Kg8 {[%emt 0:00:06] Weiss muss nun ...exd4 beachten.} 13. Qh5 {[%emt 0:00:08][%csl Gg5][%cal Rh5h7]} Bxg5 {[%emt 0:00:14]} ({Nicht} 13... exd4 14. Qh7#) 14. hxg5 {[%emt 0:00:04]} Nf6 $1 {[%emt 0:00:03] Wehrt g6 ab} 15. gxf6 {[%emt 0:00:38]} Qxf6 {[%emt 0:00:05]} 16. Qh7+ {[%emt 0:13:05]} Kf7 {[%emt 0:03:58]} 17. Qh5+ {[%emt 0:00:03]} Kg8 {[%emt 0:00:05]} 18. Qh7+ {[%emt 0:01:21]} Kf7 {[%emt 0:00:06]} 19. Qh5+ {[%emt 0:00:04]} Qg6 {[%emt 0:03:10]} 20. Be3 {[%emt 0:00:22]} (20. Qxg6+ {vereinfacht} Kxg6 21. Be3 b6 22. O-O-O) 20... Bf5 {[%emt 0:01:57]} 21. dxe5 {[%emt 0:02:56]} Nxe5 {[%emt 0:01:49]} 22. Nd4 {[%emt 0:00:04] [#]} Rh8 $1 {[%emt 0:02:37]} 23. Qxg6+ {[%emt 0:03:02]} Bxg6 {[%emt 0:00:55]} 24. Rxh8 {[%emt 0:08:45]} Rxh8 {[%emt 0:00:04]} 25. Ke2 {[%emt 0:00:03]} Bd3+ {[%emt 0:23:26]} 26. Kd2 {[%emt 0:00:04]} Be4 {[%emt 0:00:05]} 27. b3 {[%emt 0:17:19] Es drohte Nc4+} Bxg2 {[%emt 0:07:23]} 28. Nb5 {[%emt 0:00:08][%csl LRa7,LRc7]} a6 {[%emt 0:01:34]} 29. Nxc7 {[%emt 0:01:20]} Rc8 {[%emt 0:02:10]} 30. Bf4 $1 {[%emt 0:01:09] Die Stellung ist ausgeglichen.} Kf6 {[%emt 0:00:36]} (30... Nf3+ 31. Kc2 d4 (31... g5 32. Bg3 $15) 32. Rd1 $11) 31. Bxe5+ {[%emt 0:01:52]} Kxe5 $11 {[%emt 0:00:09][%mdl 4096] Endspiel. KRB-KRN} 32. Re1+ $1 {[%emt 0:08:18]} Be4 {[%emt 0:00:33]} 33. Nxa6 {[%emt 0:00:04]} Rf8 {[%emt 0:08:13]} (33... bxa6 $5 34. f3 $8 Rh8 35. fxe4 dxe4 $11) 34. Nc5 {[%emt 0:00:38]} Rxf2+ {[%emt 0:00:14]} 35. Re2 {[%emt 0:01:05]} Rxe2+ {[%emt 0:00:20]} 36. Kxe2 {[%emt 0:00:00][%cal Oe2e3] KB-KN} d4 {[%emt 0:00:05]} 37. cxd4+ {[%emt 0:01:32]} Kxd4 {[%emt 0:00:02]} 38. Ne6+ {[%emt 0:00:27]} Kc3 {[%emt 0:00:06]} 39. Nxg7 {[%emt 0:01:15]} Bb1 {[%emt 0:00:04]} 40. a4 {[%emt 0:00:00]} b6 {[%emt 0:00:00]} 41. Ne8 {[%emt 0:19:45]} Kxb3 {[%emt 0:14:54]} 42. Nf6 {[%emt 0:00:08]} Kxa4 {[%emt 0:00:23]} 43. Nd5 {[%emt 0:00:04]} Kb3 {[%emt 0:00:08] Gewichteter Fehlerwert: Weiß=0.05 (makellos) /Schwarz=0.02 (makellos) .  Ungenau:       	Weiß=2     	---        OK:         	Weiß=14    	Schwarz=14    Bester:       	Weiß=4     	Schwarz=2     Stark:        	Weiß=2     	Schwarz=1     Brilliant:      	---       	Schwarz=1} (43... Ka5 $5) 1/2-1/2

[Event "Tsaghkadzor Open 2024"]
[Site "Tsaghkadzor"]
[Date "2024.10.03"]
[Round "5.5"]
[White "Sukiasyan, Vahe A."]
[Black "Nozdrachev, Vladislav"]
[Result "0-1"]
[ECO "D37"]
[WhiteElo "2358"]
[BlackElo "2515"]
[Annotator "TA"]
[PlyCount "66"]
[EventDate "2024.09.13"]
[EventType "swiss"]
[EventCountry "ARM"]
[SourceTitle "playchess.com"]
[Source "ChessBase"]
[SourceQuality "1"]
[TimeControl "40/5400+30:1800+30"]

{[%evp 16,66,21,36,35,18,71,25,57,8,13,12,4,6,4,8,4,13,13,0,0,-7,-5,-16,-9,-11,0,-2,86,-261,-251,-255,-255,-241,-226,-195,-230,-235,-229,-223,-230,-233,-214,-222,-220,-331,-317,-402,-363,-418,-415,-445,-439]} 1. d4 {[%emt 0:00:02]} d5 {[%emt 0:00:05]} 2. c4 {[%emt 0:00:05]} e6 {[%emt 0:00:03]} 3. Nf3 {[%emt 0:00:04]} Nf6 {[%emt 0:00:04]} 4. Nc3 {[%emt 0:00:04]} Be7 {[%emt 0:00:04]} 5. Bf4 {[%emt 0:00:11]} O-O {[%emt 0:00:06]} 6. e3 {[%emt 0:00:22]} c5 {[%emt 0:00:05]} 7. dxc5 {[%emt 0:00:04]} Bxc5 {[%emt 0:00:04]} 8. Qc2 {[%emt 0:00:05]} Nc6 {[%emt 0:00:05]} 9. Rd1 {[%emt 0:00:04]} Re8 {[%emt 0:03:55]} 10. cxd5 {[%emt 0:00:06]} Nb4 {[%emt 0:01:04]} (10... exd5 $11 {keeps the balance.} 11. Be2 Be6) 11. Qc1 {[%emt 0:08:30]} (11. Qb3 $16 {Black must now prevent dxe6.} Nbxd5 12. e4) 11... Qa5 {[%emt 0:02:39] White has an edge.} 12. Nd2 {[%emt 0:00:46]} (12. Bb5 $1 $14 {is more appropriate.} Rd8 (12... Nxa2 13. Qa1 $16) 13. O-O) 12... Nbxd5 $11 {[%emt 0:01:37]} ({But not} 12... exd5 $6 13. a3 Na6 14. Bb5 $16) 13. Nb3 {[%emt 0:10:07]} (13. Nc4 $5 Qd8 $8 14. Be2 $11) 13... Qb4 {[%emt 0:00:16]} 14. Nxc5 {[%emt 0:02:26] a3 is the strong threat.} Nxf4 $1 {[%emt 0:00:12]} 15. exf4 {[%emt 0:01:55]} Qxc5 {[%emt 0:00:06]} 16. Bb5 {[%emt 0:00:27] Dodges Qc6} Rf8 {[%emt 0:01:18]} 17. O-O {[%emt 0:01:50]} b6 {[%emt 0:02:06]} 18. Bd3 {[%emt 0:16:22]} Bb7 {[%emt 0:02:21]} 19. Nb5 {[%emt 0:00:05]} Qh5 {[%emt 0:02:15]} (19... Qxc1 {simplifies} 20. Rxc1 g6 21. Rfd1 Rfd8) 20. h3 {[%emt 0:03:00]} (20. Nc3 {simplifies} Rad8 21. h3 Nd5 22. Nxd5 Rxd5 23. f3) 20... Rfd8 {[%emt 1:22:05][%cal Od8d3] Hoping for ...Rxd3!} (20... Rad8 {simplifies} 21. Nc3 Nd5 22. Nxd5 Rxd5 23. f3 Rc8) 21. Qc7 {[%emt 0:26:38] [#]} Bxg2 {[%emt 0:00:00] [#]} 22. Be4 $2 {[%emt 0:08:27][%mdl 8192] Some like it hot. This costs White the game.} Rxd1 $19 {[%emt 0:00:00]} 23. Bxa8 {[%emt 0:00:12] Threatening mate with Qb8+.} Rxf1+ $40 {[%emt 0:00:00][%mdl 128] White is in trouble.} 24. Kxg2 {[%emt 0:00:04] Intending Qb8+ and mate.} Qxb5 {[%emt 0:00:00]} 25. Qc8+ {[%emt 0:00:57] [#]} Qe8 $1 {[%emt 0:00:00]} ({Don't do} 25... Ne8 26. Bc6 $17) 26. Qxe8+ {[%emt 0:00:04]} Nxe8 {[%emt 0:00:00]} 27. Kxf1 {[%emt 0:00:04][%mdl 4096] Endgame. KB-KN} Kf8 {[%emt 0:00:00]} 28. Ke2 {[%emt 0:21:29]} Ke7 {[%emt 0:00:00]} 29. Kd3 {[%emt 0:00:17]} Kd6 {[%emt 0:00:00]} 30. Be4 {[%emt 0:02:45]} (30. Bf3 {was necessary.}) 30... Nf6 {[%emt 0:00:00]} 31. Bg2 {[%emt 0:00:51]} Nd5 {[%emt 0:00:00]} 32. Ke4 {[%emt 0:00:04]} f5+ {[%emt 0:00:00]} 33. Kf3 {[%emt 0:00:01]} Nb4 {[%emt 0:00:00] Weighted Error Value: White=0.38/Black=0.12 (very precise) .  Loses game:     	White=1     	---        Mistake:       	White=3     	Black=2      Inaccurate:     	---       	Black=1      OK:         	White=6     	Black=12     Best:        	White=3     	Black=3      Strong:       	---       	Black=2} 0-1

[Event "Tsaghkadzor Open 2024"]
[Site "Tsaghkadzor"]
[Date "2024.10.03"]
[Round "5.6"]
[White "Sahakyan, Aleks"]
[Black "Lobanov, Sergei"]
[Result "1/2-1/2"]
[ECO "B30"]
[WhiteElo "2267"]
[BlackElo "2506"]
[Annotator "RC"]
[PlyCount "155"]
[EventDate "2024.09.13"]
[EventType "swiss"]
[EventCountry "ARM"]
[SourceTitle "playchess.com"]
[Source "ChessBase"]
[SourceQuality "1"]
[TimeControl "40/5400+30:1800+30"]

1. e4 {[%emt 0:00:03]} c5 {[%emt 0:00:07]} 2. Nf3 {[%emt 0:00:04]} Nc6 {[%emt 0:00:07]} 3. Bb5 {[%emt 0:00:06]} e6 {[%emt 0:00:13]} 4. Bxc6 {[%emt 0:00:05]} bxc6 {[%emt 0:00:05]} 5. d3 {[%emt 0:00:04]} Ne7 {[%emt 0:01:59]} 6. Nbd2 {[%emt 0:03:42]} f6 {[%emt 0:03:02]} 7. O-O {[%emt 0:05:31]} Ng6 {[%emt 0:01:28]} 8. h4 {[%emt 0:09:05]} e5 {[%emt 0:01:28]} 9. h5 {[%emt 0:08:27]} Nf4 {[%emt 0:00:07]} 10. Nh4 {[%emt 0:01:26]} g6 {[%emt 0:06:44]} 11. hxg6 {[%emt 0:09:03]} hxg6 {[%emt 0:00:14]} 12. Ndf3 {[%emt 0:00:03]} g5 {[%emt 0:06:37]} 13. Bxf4 {[%emt 0:01:59]} exf4 {[%emt 0:14:19]} 14. Nf5 {[%emt 0:02:58]} d5 {[%emt 0:03:15]} 15. g4 {[%emt 0:02:27]} fxg3 {[%emt 0:07:55]} 16. fxg3 {[%emt 0:03:06]} Bxf5 {[%emt 0:01:47]} 17. exf5 {[%emt 0:00:07]} Bd6 {[%emt 0:00:02]} 18. Kg2 {[%emt 0:02:23]} Kf7 {[%emt 0:01:00]} 19. Qe2 {[%emt 0:09:37]} Qd7 {[%emt 0:16:37]} 20. Rae1 {[%emt 0:00:45]} Rae8 {[%emt 0:07:42]} 21. Qe6+ {[%emt 0:01:44]} Qxe6 {[%emt 0:00:30]} 22. fxe6+ {[%emt 0:00:08]} Kg6 {[%emt 0:05:57]} 23. c3 {[%emt 0:09:07]} Re7 {[%emt 0:00:32]} 24. Re2 {[%emt 0:01:10]} Reh7 {[%emt 0:12:25]} 25. Rfe1 {[%emt 0:01:23]} Be7 {[%emt 0:00:04]} 26. b3 {[%emt 0:04:07]} Kf5 {[%emt 0:02:07]} 27. d4 {[%emt 0:05:21]} Kg4 {[%emt 0:00:27]} 28. Kf2 {[%emt 0:00:13]} Bd6 {[%emt 0:01:39]} 29. Rg1 {[%emt 0:01:10]} Re7 {[%emt 0:00:22]} 30. Kg2 {[%emt 0:06:54]} Bxg3 {[%emt 0:03:35]} 31. dxc5 {[%emt 0:00:41]} f5 {[%emt 0:00:29]} 32. Rd1 {[%emt 0:02:08]} Rh6 {[%emt 0:02:21]} 33. Rd4+ {[%emt 0:01:35]} f4 {[%emt 0:00:11]} 34. Re5 {[%emt 0:01:57]} Rg6 {[%emt 0:00:04]} 35. c4 {[%emt 0:01:09]} dxc4 {[%emt 0:00:07]} 36. bxc4 {[%emt 0:00:27]} Rexe6 {[%emt 0:02:16]} 37. Rd6 {[%emt 0:00:12]} Rxd6 {[%emt 0:00:06]} 38. cxd6 {[%emt 0:00:05]} Bh4 {[%emt 0:00:02]} 39. c5 {[%emt 0:00:42]} Rg8 {[%emt 0:00:04]} 40. d7 {[%emt 0:00:00]} Rd8 {[%emt 0:00:00]} 41. Re8 {[%emt 0:16:04]} Rxd7 {[%emt 0:16:41]} 42. Ne5+ {[%emt 0:00:03]} Kf5 {[%emt 0:00:03]} 43. Nxd7 {[%emt 0:00:07]} g4 {[%emt 0:00:05]} 44. Rf8+ {[%emt 0:02:01]} Ke6 {[%emt 0:00:28]} 45. Nb8 {[%emt 0:05:36]} f3+ {[%emt 0:00:06]} 46. Kh2 {[%emt 0:02:12]} Bf2 {[%emt 0:04:33]} 47. Rg8 {[%emt 0:03:20]} Bxc5 {[%emt 0:01:29]} 48. Nxc6 {[%emt 0:01:46]} Bd6+ {[%emt 0:00:56]} 49. Kg1 {[%emt 0:00:19]} Kd5 {[%emt 0:03:29]} 50. Nxa7 {[%emt 0:07:39]} Bc5+ {[%emt 0:05:38]} 51. Kf1 {[%emt 0:00:10]} Bxa7 {[%emt 0:00:04]} 52. Rxg4 {[%emt 0:00:03]} Kc6 {[%emt 0:00:10]} 53. Rg5 {[%emt 0:00:28]} Kb7 {[%emt 0:00:38]} 54. Rf5 {[%emt 0:00:05]} f2 {[%emt 0:00:03]} 55. Ke2 {[%emt 0:00:05]} Ka6 {[%emt 0:00:22]} 56. Kd3 {[%emt 0:00:19]} Bb6 {[%emt 0:00:06]} 57. Kc4 {[%emt 0:00:11]} Be3 {[%emt 0:00:03]} 58. Kb4 {[%emt 0:01:01]} Bd4 {[%emt 0:01:03]} 59. Rf4 {[%emt 0:00:15]} Kb6 {[%emt 0:01:06]} 60. a4 {[%emt 0:02:03]} Bc5+ {[%emt 0:00:12]} 61. Kc4 {[%emt 0:00:17]} Be3 {[%emt 0:00:02]} 62. Rf5 {[%emt 0:00:10]} Ka6 {[%emt 0:00:18]} 63. Kb3 {[%emt 0:00:25]} Bc5 {[%emt 0:01:14]} 64. Kc3 {[%emt 0:00:37]} Be3 {[%emt 0:01:53]} 65. Kc4 {[%emt 0:00:02]} Ba7 {[%emt 0:01:16]} 66. Kb4 {[%emt 0:00:53]} Bd4 {[%emt 0:00:31]} 67. a5 {[%emt 0:00:37]} Be3 {[%emt 0:00:04]} 68. Rf6+ {[%emt 0:00:06]} Kb7 {[%emt 0:00:05]} 69. Kb5 {[%emt 0:00:04]} Bd4 {[%emt 0:00:14]} 70. Rf7+ {[%emt 0:00:11]} Kb8 {[%emt 0:00:08]} 71. Kc6 {[%emt 0:01:00]} Be3 {[%emt 0:00:17]} 72. a6 {[%emt 0:00:40]} Ka8 {[%emt 0:00:17]} 73. Kb5 {[%emt 0:01:34]} Kb8 {[%emt 0:00:16]} 74. Kc6 {[%emt 0:00:13]} Ka8 {[%emt 0:00:04]} 75. a7 {[%emt 0:00:05]} Bd4 {[%emt 0:01:23]} 76. Kb5 {[%emt 0:00:33]} Bxa7 {[%emt 0:00:04]} 77. Ka6 {[%emt 0:00:11]} Bc5 {[%emt 0:00:46]} 78. Kb5 {[%emt 0:00:05]} 1/2-1/2

[Event "Tsaghkadzor Open 2024"]
[Site "Tsaghkadzor"]
[Date "2024.10.03"]
[Round "5.7"]
[White "Kornienko, Konstantin"]
[Black "Davtyan, Artur"]
[Result "1/2-1/2"]
[ECO "E11"]
[WhiteElo "2058"]
[BlackElo "2467"]
[Annotator "RC"]
[PlyCount "87"]
[EventDate "2024.09.13"]
[EventType "swiss"]
[EventCountry "ARM"]
[SourceTitle "playchess.com"]
[Source "ChessBase"]
[SourceQuality "1"]
[TimeControl "40/5400+30:1800+30"]

1. d4 {[%emt 0:00:07]} Nf6 {[%emt 0:15:58]} 2. Nf3 {[%emt 0:00:23]} d5 {[%emt 0:00:27]} 3. c4 {[%emt 0:00:10]} e6 {[%emt 0:00:38]} 4. g3 {[%emt 0:00:36]} Bb4+ {[%emt 0:03:04]} 5. Bd2 {[%emt 0:00:20]} Be7 {[%emt 0:00:07]} 6. Bg2 {[%emt 0:01:09]} O-O {[%emt 0:00:07]} 7. Qc2 {[%emt 0:00:14]} c6 {[%emt 0:00:07]} 8. O-O {[%emt 0:00:14]} b6 {[%emt 0:04:37]} 9. Bf4 {[%emt 0:07:14]} Ba6 {[%emt 0:22:16]} 10. Nbd2 {[%emt 0:06:19]} Nbd7 {[%emt 0:00:29]} 11. Rfd1 {[%emt 0:25:00]} Rc8 {[%emt 0:02:28]} 12. Rac1 {[%emt 0:08:54]} b5 {[%emt 0:05:25]} 13. c5 {[%emt 0:02:59]} b4 {[%emt 0:00:05]} 14. Re1 {[%emt 0:04:47]} Bb5 {[%emt 0:00:19]} 15. e4 {[%emt 0:08:20]} dxe4 {[%emt 0:04:46]} 16. Nxe4 {[%emt 0:00:33]} Nxe4 {[%emt 0:00:12]} 17. Qxe4 {[%emt 0:00:20]} Nf6 {[%emt 0:00:19]} 18. Qc2 {[%emt 0:00:50]} Nd5 {[%emt 0:11:45]} 19. Bd2 {[%emt 0:02:15]} a5 {[%emt 0:03:49]} 20. a3 {[%emt 0:03:48]} bxa3 {[%emt 0:01:22]} 21. bxa3 {[%emt 0:00:04]} Qc7 {[%emt 0:02:04]} 22. Ne5 {[%emt 0:03:56]} Rfd8 {[%emt 0:00:09]} 23. Bh3 {[%emt 0:04:19]} g6 {[%emt 0:01:09]} 24. Bh6 {[%emt 0:03:52]} Bf8 {[%emt 0:00:25]} 25. Nxf7 {[%emt 0:09:40]} Qxf7 {[%emt 0:09:33]} 26. Bxe6 {[%emt 0:00:06]} Bxh6 {[%emt 0:00:04]} 27. Bxf7+ {[%emt 0:00:59]} Kxf7 {[%emt 0:00:02]} 28. Rb1 {[%emt 0:00:50]} Bg7 {[%emt 0:00:06]} 29. a4 {[%emt 0:02:01]} Ba6 {[%emt 0:00:07]} 30. Qd2 {[%emt 0:02:33]} Nb4 {[%emt 0:00:22]} 31. Re4 {[%emt 0:01:21]} Bf6 {[%emt 0:01:33]} 32. Rbe1 {[%emt 0:01:01]} Kg8 {[%emt 0:00:06]} 33. Re6 {[%emt 0:00:44]} Rf8 {[%emt 0:07:15]} 34. Rd6 {[%emt 0:00:48]} Bc4 {[%emt 0:00:02]} 35. h4 {[%emt 0:00:29]} Rf7 {[%emt 0:00:38]} 36. Re4 {[%emt 0:00:38]} Rcf8 {[%emt 0:00:15]} 37. Rf4 {[%emt 0:00:31]} Bd5 {[%emt 0:00:41]} 38. Kh2 {[%emt 0:00:30]} Kg7 {[%emt 0:03:30]} 39. h5 {[%emt 0:00:21]} gxh5 {[%emt 0:00:47]} 40. Qe2 {[%emt 0:00:00]} Bxd4 {[%emt 0:00:00]} 41. Qxh5 {[%emt 0:17:21]} Rxf4 {[%emt 0:21:12]} 42. gxf4 {[%emt 0:00:32]} Bf6 {[%emt 0:01:44]} 43. Rd7+ {[%emt 0:01:04]} Bf7 {[%emt 0:00:07]} 44. Qg4+ {[%emt 0:02:51]} 1/2-1/2